Cogmind - Beta 12 @@@ ROGUE MODE // 2023.06.04 @ 18:38:35 Player: LustLizard Result: Self-destructed Performance ------------- Evolutions (2) 1000 Regions Visited (7) 1400 Robots Destroyed (52) 260 Value Destroyed (1311) 1311 Prototype IDs (25) 500 Alien Tech Used (0) 0 Bonus (314) 314 TOTAL SCORE: 4785 Bonus ------- Follower Combat Kills 14 Aligned with FarCom 300 Cogmind --------- Core Integrity 408/550 Matter 300/300 Energy 287/290 System Corruption 0% Temperature Critical (516) Movement Core (750) Ox14 Location -8/Materials Parts ------- > --- POWER (1) -------- Improved Deuterium Engine > --- PROPULSION (3) --- Improved Treads > --- UTILITY (5) ------ Improved Heat Sink Large Storage Unit Improved Targeting Computer Utility Shielding Light Armor Plating > --- WEAPON (2) ------- Advanced Beam Cannon Heavy Particle Cannon > --- INVENTORY (15) --- Makeshift Power Source Light Treads Potential Leg Potential Leg Large Storage Unit Sensor Array Gatling Laser Advanced Beam Cannon Advanced Beam Cannon Heavy Particle Cannon Grenade Launcher Rocket Launcher Peak State ------------ > --- POWER ------------ Improved Deuterium Engine > --- PROPULSION ------- Light Treads Improved Treads Wheel > --- UTILITY ---------- Improved Heat Sink Large Storage Unit Sensor Array Improved Targeting Computer Medium Armor Plating > --- WEAPON ----------- Advanced Beam Cannon Advanced Beam Cannon > --- INVENTORY -------- Makeshift Power Source Light Treads Potential Leg Potential Leg Large Storage Unit Utility Shielding Light Armor Plating Medium Armor Plating Gatling Laser Advanced Beam Cannon Advanced Beam Cannon Grenade Launcher Rocket Launcher [Rating: 27] Favorites ----------- Power Ion Engine Engine Ion Engine Propulsion Light Treads Treads Light Treads Wheel Wheel Utility Large Storage Unit Device Sensor Array Storage Large Storage Unit Processor Improved Targeting Computer Protection Medium Armor Plating Weapon Advanced Beam Cannon Energy Cannon Advanced Beam Cannon Ballistic Gun Assault Rifle Special Weapon Welding Torch Build | -11 -10 -10 -9 -9 -9 -8 -8 ------- Run | Jun Mat Min Mat Min Exi Min Mat Slots Evolved 4 | . . . 2 . . . 2 Power . | . . . . . . . . Propulsion 1 | . . . 1 . . . . Utility 3 | . . . 1 . . . 2 Weapon . | . . . . . . . . Parts Attached 45 | 6 5 2 21 3 . . 8 Power 8 | 1 1 1 4 1 . . . Engine 8 | 1 1 1 4 1 . . . Core . | . . . . . . . . Reactor . | . . . . . . . . Propulsion 11 | 2 . . 5 2 . . 2 Treads 8 | 1 . . 4 1 . . 2 Leg . | . . . . . . . . Wheel 3 | 1 . . 1 1 . . . Hover . | . . . . . . . . Flight . | . . . . . . . . Utility 14 | 1 3 . 5 . . . 5 Device 5 | . 2 . 2 . . . 1 Storage 3 | 1 1 . 1 . . . . Processor 1 | . . . 1 . . . . Hackware . | . . . . . . . . Protection 5 | . . . 1 . . . 4 Artifact . | . . . . . . . . Weapon 12 | 2 1 1 7 . . . 1 Energy Gun . | . . . . . . . . Energy Cannon 5 | . . . 4 . . . 1 Ballistic Gun 6 | 2 1 1 2 . . . . Ballistic Cannon . | . . . . . . . . Launcher . | . . . . . . . . Special Weapon 1 | . . . 1 . . . . Impact Weapon . | . . . . . . . . Slashing Weapon . | . . . . . . . . Piercing Weapon . | . . . . . . . . Special Melee Weapon . | . . . . . . . . Unidentified Prototypes 2 | . . . 2 . . . . Parts Lost 8 | . . 1 2 . . . 5 Power . | . . . . . . . . Propulsion 4 | . . . 1 . . . 3 Utility 3 | . . . 1 . . . 2 Weapon 1 | . . 1 . . . . . Highest Loss Streak 5 | . . 1 1 . . . 5 To Critical Strikes 1 | . . . 1 . . . . Average Slot Usage (%) 99 | . 96 100 99 100 100 100 99 Engine 11 | . 14 14 11 11 11 11 9 Treads 19 | . 14 14 21 22 22 22 18 Wheel 11 | . 14 14 11 11 11 11 7 Device 11 | . 11 14 13 11 11 11 9 Storage 11 | . 14 14 11 11 11 11 9 Processor 6 | . . . 3 11 11 11 9 Protection 3 | . . . 4 . . . 17 Energy Cannon 15 | . . . 16 22 22 22 18 Ballistic Gun 7 | . 28 28 5 . . . . Naked Turns . | . . . . . . . . Heaviest Build 49 | 13 30 30 42 39 39 39 49 Greatest Support 43 | 16 16 20 43 23 10 10 43 Greatest Overweight (x) 4 | . 1 1 4 3 3 3 4 Average Overweight (x) 1 | . . 1 1 2 3 3 3 Largest Inventory Capacity 15 | 8 15 15 15 15 15 15 15 Average Capacity 14 | 6 13 15 15 15 15 15 15 Most Carried 15 | 6 15 15 15 15 15 15 15 Average Carried 14 | 4 12 14 14 15 15 15 13 Final Capacity 15 | 8 15 15 15 15 15 15 15 Final Carried 15 | 6 15 15 15 15 15 15 12 Class Distribution -------------------- 92% | Mutant 7% | Skirmisher Dominant Class ---------------- Mutant | -10/Materials Mutant | -10/Mines Mutant | -9/Materials Mutant | -9/Mines Mutant | -9/Exiles Skirmisher | -8/Mines Mutant | -8/Materials Resources | -11 -10 -10 -9 -9 -9 -8 -8 ----------- Run | Jun Mat Min Mat Min Exi Min Mat Matter Collected 1031 | 238 276 105 282 56 . 9 65 Remotely . | . . . . . . . . Salvage Created 2065 | . 436 184 1097 112 . . 236 Parts 121 | . 21 13 68 6 . . 13 Haulers Intercepted 2 | . . . 2 . . . . Recyclers Shooed 5 | . 2 1 2 . . . . Parts Field Recycled . | . . . . . . . . Retrieved Matter . | . . . . . . . . Parts Self-Destructed . | . . . . . . . . Prevented . | . . . . . . . . Kills | -11 -10 -10 -9 -9 -9 -8 -8 ------- Run | Jun Mat Min Mat Min Exi Min Mat Combat Hostiles Destroyed 39 | . 6 3 22 1 . . 7 Guns 13 | . 6 3 4 . . . . Cannons 25 | . . . 17 1 . . 7 Classes Destroyed 8 | . 2 1 5 . . . . Worker 1 | . . . 1 . . . . Hauler 2 | . . . 2 . . . . Recycler 6 | . 2 1 2 1 . . . Watcher 4 | . . . 3 . . . 1 Swarmer 12 | . . . 7 1 . . 4 Grunt 21 | . 6 2 11 . . . 2 Sentry 5 | . . . 4 . . . 1 Demolisher 1 | . . 1 . . . . . Best Kill Streak 9 | . 3 2 9 1 . . 4 Combat Bots Only 5 | . 2 2 5 1 . . 4 Max Kills in Single Turn 2 | . 1 1 2 1 . . 1 Gunslinging . | . . . . . . . . Exploded . | . . . . . . . . Melee . | . . . . . . . . Uniques/NPCs Destroyed . | . . . . . . . . Combat | -11 -10 -10 -9 -9 -9 -8 -8 -------- Run | Jun Mat Min Mat Min Exi Min Mat Damage Taken 2367 | . 318 276 676 84 . . 1013 Core 491 | . 122 40 164 23 . . 142 Absorbed by Shields . | . . . . . . . . Redirected to Shielding 16 | . . . . . . . 16 Core Remaining (%) 62 | 100 . 35 . . . 53 . Volleys Fired 159 | . 34 15 79 3 . 1 27 Largest 2 | . 2 2 2 2 . 2 2 Hottest 143 | . 40 40 136 136 . 136 143 Shots Fired 292 | . 68 30 144 7 . 2 41 Gun 128 | . 68 30 30 . . . . Cannon 159 | . . . 109 7 . 2 41 Launcher . | . . . . . . . . Special 5 | . . . 5 . . . . Kinetic 128 | . 68 30 30 . . . . Thermal 164 | . . . 114 7 . 2 41 Explosive . | . . . . . . . . Electromagnetic . | . . . . . . . . Robot Hit Streak 23 | . 15 10 23 1 . 1 14 Robot Miss Streak 7 | . 3 2 7 2 . 1 2 Penetration Max . | . . . . . . . . Secondary Targets 1 | . . 1 . . . . . Max Gunslinging Chain 1 | . . 1 . . . . . Shots Hit Robots 184 | . 47 21 81 2 . 1 32 Core Hits 69 | . 16 8 30 2 . . 13 Critical Kills 3 | . 1 . 1 . . . 1 Critical Parts Destroyed 1 | . 1 . . . . . . Critical Strikes 4 | . 2 . 1 . . . 1 Meltdown 2 | . . . 1 . . . 1 Destroy 2 | . 2 . . . . . . Melee Attacks . | . . . . . . . . Impact . | . . . . . . . . Slashing . | . . . . . . . . Piercing . | . . . . . . . . Sneak Attacks . | . . . . . . . . Combat Hostiles . | . . . . . . . . Follow-up Attacks . | . . . . . . . . Damage Inflicted 3304 | . 591 282 1665 45 . 21 700 Guns 1165 | . 591 282 292 . . . . Cannons 2135 | . . . 1369 45 . 21 700 Explosions . | . . . . . . . . Melee . | . . . . . . . . Ramming 4 | . . . 4 . . . . Kinetic 1165 | . 591 282 292 . . . . Thermal 2135 | . . . 1369 45 . 21 700 Explosive . | . . . . . . . . Electromagnetic . | . . . . . . . . Impact . | . . . . . . . . Slashing . | . . . . . . . . Piercing . | . . . . . . . . Highest Corruption 1 | . . . 1 1 1 1 . Average Corruption 1 | . . . 1 1 1 1 . Corruption Purged . | . . . . . . . . Corruption Blocked . | . . . . . . . . Effects 21 | . . . 10 6 1 4 . Message Errors 2 | . . . . 1 . 1 . Matter Fused 4 | . . . 1 2 1 . . Heat Flow Errors 1 | . . . . . . 1 . Energy Discharges 5 | . . . 3 1 . 1 . Parts Rejected 1 | . . . . 1 . . . Data Loss (minor) 4 | . . . 4 . . . . Misfires 2 | . . . 1 1 . . . Alerts 1 | . . . . . . 1 . Weapon Failures 1 | . . . 1 . . . . Overload Shots . | . . . . . . . . Overflow Damage 36 | . . . 17 . . . 19 Projectiles 36 | . . . 17 . . . 19 Explosions . | . . . . . . . . Melee . | . . . . . . . . Knockbacks . | . . . . . . . . Impact . | . . . . . . . . Kinetic . | . . . . . . . . Secondary . | . . . . . . . . Self-Inflicted Damage . | . . . . . . . . Shots . | . . . . . . . . Rammed 1 | . . . 1 . . . . Targets Rammed 1 | . . . 1 . . . . Kicked . | . . . . . . . . Crushed . | . . . . . . . . Highest Temperature 507 | . 2 23 450 138 . 156 507 Average Temperature 107 | . 2 11 106 52 . 63 161 Received Heat Transfer 1083 | . 168 108 258 . . . 549 Effects 5 | . . . 1 . . . 4 Shutdowns 2 | . . . 1 . . . 1 Energy Bleed 1 | . . . . . . . 1 Interference 2 | . . . . . . . 2 Siege Activations . | . . . . . . . . Robots Corrupted . | . . . . . . . . Combat Hostiles . | . . . . . . . . Parts Fried . | . . . . . . . . Impact Corruptions . | . . . . . . . . Robots Melted 2 | . . . 1 . . . 1 Combat Hostiles 1 | . . . 1 . . . . Parts Melted 7 | . . . 4 . . . 3 Heat Transferred 3811 | . . . 2479 74 . 37 1221 Parts Sabotaged . | . . . . . . . . Parts Stolen . | . . . . . . . . Parts Stripped . | . . . . . . . . Power Chain Reactions . | . . . . . . . . Missiles Intercepted . | . . . . . . . . Alert | -11 -10 -10 -9 -9 -9 -8 -8 ------- Run | Jun Mat Min Mat Min Exi Min Mat Peak Influence 242 | . 72 107 242 171 . . 197 Initial 78 | . . 27 41 78 . . . Average 76 | . 28 88 142 47 . . 67 Maximum Alert Level 1 | . . . 1 . . . . Low Security (%) 94 | 100 100 100 81 100 . 100 100 Level 1 5 | . . . 18 . . . . Level 2 . | . . . . . . . . Level 3 . | . . . . . . . . Level 4 . | . . . . . . . . Level 5 . | . . . . . . . . High Security . | . . . . . . . . Max Security . | . . . . . . . . Squads Dispatched 4 | . 1 . 3 . . . . Investigation 2 | . 1 . 1 . . . . Extermination . | . . . . . . . . Reinforcement 2 | . . . 2 . . . . Assault . | . . . . . . . . Garrison . | . . . . . . . . Intercept . | . . . . . . . . Searches Triggered . | . . . . . . . . Construction Impeded . | . . . . . . . . Haulers Reinforced . | . . . . . . . . Active Scanning Responses . | . . . . . . . . Cargo Convoy Interrupts . | . . . . . . . . Stealth | -11 -10 -10 -9 -9 -9 -8 -8 --------- Run | Jun Mat Min Mat Min Exi Min Mat Distress Signals 5 | . . . 4 . . . 1 Communications Jammed . | . . . . . . . . Distress Signals . | . . . . . . . . Times Spotted 61 | . 8 3 34 3 . . 13 Peak Tracking Total 5 | . 2 2 4 3 . . 5 Tactical Retreats 1 | . . . 1 . . . . Traps | -11 -10 -10 -9 -9 -9 -8 -8 ------- Run | Jun Mat Min Mat Min Exi Min Mat Traps Triggered 4 | . 1 . 2 1 . . . Indirectly . | . . . . . . . . Trap Hack Attempts . | . . . . . . . . Triggered . | . . . . . . . . Disarmed . | . . . . . . . . Reprogrammed . | . . . . . . . . Reused . | . . . . . . . . Traps Extracted . | . . . . . . . . Installed . | . . . . . . . . Triggered . | . . . . . . . . Exploded 1 | . . . . . 1 . . Machines | -11 -10 -10 -9 -9 -9 -8 -8 ---------- Run | Jun Mat Min Mat Min Exi Min Mat Machines Disabled 2 | . . . 1 1 . . . Max in Single Turn 1 | . . . 1 1 . . . Machines Repaired . | . . . . . . . . Machines Sabotaged . | . . . . . . . . Overloaded Fab Kills . | . . . . . . . . Hacking | -11 -10 -10 -9 -9 -9 -8 -8 --------- Run | Jun Mat Min Mat Min Exi Min Mat Machines Accessed 13 | . 2 . 6 1 1 . 3 Terminals 11 | . 2 . 6 . . . 3 Fabricators . | . . . . . . . . Repair Stations . | . . . . . . . . Recycling Units . | . . . . . . . . Scanalyzers . | . . . . . . . . Garrison Access . | . . . . . . . . Total Hacks 38 | . 12 . 14 1 1 . 10 Successful 18 | . 9 . 3 1 1 . 4 Failed 20 | . 3 . 11 . . . 6 Catastrophic 6 | . . . 4 . . . 2 Database Lockouts . | . . . . . . . . Manual 28 | . 8 . 9 . 1 . 10 Terminals 36 | . 12 . 14 . . . 10 Fabricators . | . . . . . . . . Repair Stations . | . . . . . . . . Recycling Units . | . . . . . . . . Scanalyzers . | . . . . . . . . Garrison Access . | . . . . . . . . Terminal Hacks 10 | . 7 . . 1 1 . 1 Robot Analysis 3 | . 3 . . . . . . Open Door 1 | . . . . 1 . . . Branch Access Points 1 | . 1 . . . . . . Unreport Threat 3 | . 2 . . . . . 1 Locate Traps 1 | . 1 . . . . . . EX-Prototype ID Bank 1 | . . . . . 1 . . Fabricator Hacks . | . . . . . . . . Repair Station Hacks . | . . . . . . . . Recycling Unit Hacks . | . . . . . . . . Scanalyzer . | . . . . . . . . Garrison Access Hacks . | . . . . . . . . Unauthorized Hacks 8 | . 2 . 3 . . . 3 Terminals 8 | . 2 . 3 . . . 3 Botnet 8 | . 2 . 3 . . . 3 Fabricators . | . . . . . . . . Repair Stations . | . . . . . . . . Recycling Units . | . . . . . . . . Scanalyzers . | . . . . . . . . Garrison Access . | . . . . . . . . Data Cores Recovered . | . . . . . . . . Used . | . . . . . . . . Hacking Detections 10 | . 1 . 6 . . . 3 Full Trace Events . | . . . . . . . . Feedback Events . | . . . . . . . . Feedback Blocked . | . . . . . . . . Robot Schematics Acquired . | . . . . . . . . Robots Built . | . . . . . . . . Authchips . | . . . . . . . . Time . | . . . . . . . . Total Robot Build Rating . | . . . . . . . . Part Schematics Acquired . | . . . . . . . . Parts Built . | . . . . . . . . Authchips . | . . . . . . . . Time . | . . . . . . . . Total Part Build Rating . | . . . . . . . . Parts Repaired . | . . . . . . . . Time . | . . . . . . . . Parts Recycled . | . . . . . . . . Recycled Matter . | . . . . . . . . Retrieved Matter . | . . . . . . . . Retrieved Components . | . . . . . . . . Parts Scanalyzed . | . . . . . . . . Part Schematics Acquired . | . . . . . . . . Parts Damaged . | . . . . . . . . Bothacking | -11 -10 -10 -9 -9 -9 -8 -8 ------------ Run | Jun Mat Min Mat Min Exi Min Mat Used RIF Installer . | . . . . . . . . Robots Hacked . | . . . . . . . . Non-combat . | . . . . . . . . Combat . | . . . . . . . . Robot Hacks Applied . | . . . . . . . . Relay Couplers Released . | . . . . . . . . Fabnet Peak Effective % . | . . . . . . . . Robots Rewired . | . . . . . . . . Allies Hacked . | . . . . . . . . Hacks Repelled . | . . . . . . . . Allies | -11 -10 -10 -9 -9 -9 -8 -8 -------- Run | Jun Mat Min Mat Min Exi Min Mat Total Allies 3 | . . . . 3 . . . Largest Group 3 | . . . . 3 1 . . Highest-Rated Group 74 | . . . . 74 31 . . Highest-Rated Ally 31 | . . . . 31 31 . . Total Orders . | . . . . . . . . Ally Attacks 11 | . . . . 11 . . . Total Damage 146 | . . . . 146 . . . Kills 2 | . . . . 2 . . . Allies Corrupted . | . . . . . . . . Allies Melted . | . . . . . . . . Intel | -11 -10 -10 -9 -9 -9 -8 -8 ------- Run | Jun Mat Min Mat Min Exi Min Mat Robot Analysis Total 3 | . 3 . . . . . . Derelict Logs Recovered 1 | . . . . 1 . . . Drone Launches . | . . . . . . . . Drone Recoveries . | . . . . . . . . Exploration | -11 -10 -10 -9 -9 -9 -8 -8 ------------- Run | Jun Mat Min Mat Min Exi Min Mat Turns Passed 4421 | 46 560 381 1309 1090 264 336 435 Spaces Moved 2368 | 41 334 258 524 573 212 259 167 Core 21 | 21 . . . . . . . Treads 609 | . . 4 300 286 . . 19 Legs . | . . . . . . . . Wheels 1738 | 20 334 254 224 287 212 259 148 Hover . | . . . . . . . . Flight . | . . . . . . . . Fastest Speed 50 | 50 100 115 115 125 125 125 140 Average Speed 148 | 74 110 116 175 182 125 125 153 Slowest Speed 320 | 100 115 240 320 240 125 125 320 Overloaded Moves . | . . . . . . . . Propulsion Burnouts . | . . . . . . . . Robots Hopped . | . . . . . . . . Cave-ins Triggered . | . . . . . . . . Exploration Rate (%) 46 | 3 38 54 46 98 59 67 10 Regions Visited 7 Branch Regions 4 Pre-discovered Areas 1 | . . . . 1 . . . Known Exits Taken 1 | . 1 . . . . . . Unknown Exits Taken 6 | 1 . 1 1 1 1 1 . Scrap Searched 3 | . . 1 . 1 . 1 . Spaces Dug . | . . . . . . . . Terrain Destroyed 1 | . . . . . . . 1 Melee . | . . . . . . . . Projectile 1 | . . . . . . . 1 AOE . | . . . . . . . . Terrain Rammed . | . . . . . . . . Walls Destroyed . | . . . . . . . . Machines Disabled . | . . . . . . . . Actions | -11 -10 -10 -9 -9 -9 -8 -8 --------- Run | Jun Mat Min Mat Min Exi Min Mat Total 2999 | 53 461 307 777 613 215 269 304 Wait 359 | . 70 31 119 29 . 10 100 Move 2361 | 40 333 257 523 572 211 258 167 Hop . | . . . . . . . . Pick Up 38 | 7 13 1 12 2 2 . 1 Fast Attach 14 | 5 1 . 5 2 . . 1 Attach 12 | 1 . 1 5 . . . 5 Detach 1 | . . . 1 . . . . Swap 19 | . 4 1 11 1 . . 2 Drop 35 | . 6 1 21 4 2 . 1 Fire 159 | . 34 15 79 3 . 1 27 Melee . | . . . . . . . . Ram . | . . . . . . . . Kick . | . . . . . . . . Crush 1 | . . . 1 . . . . Escape Stasis . | . . . . . . . . Rewire . | . . . . . . . . Trap . | . . . . . . . . Miscellaneous . | . . . . . . . . Route ------- -11/Junkyard -10/Materials -10/Mines -9/Materials (discovered 3 exits: *Mat / *Min / [*Sto]) -9/Mines (discovered 3 exits: *Mat x2 / *Exi) -9/Exiles -8/Mines -8/Materials History --------- Turn | Location | Event 11 | -11/Junkyard | Discovered new exit (range 16) 47 | -11/Junkyard | Entered Materials 282 | -10/Materials | Discovered new exit (range 16) 314 | -10/Materials | Build established: Mutant 546 | -10/Materials | Identified exit to Mines 607 | -10/Materials | Entered Mines 612 | -10/Mines | Core integrity fell below 50% 675 | -10/Mines | Assembled infested the area 981 | -10/Mines | Discovered new exit (range 7) 988 | -10/Mines | Entered Materials 988 | -9/Materials | Evolved 2 slots: Propulsion x1, Utility x1 1619 | -9/Materials | Discovered new exit (range 16) 1874 | -9/Materials | Discovered new exit (range 6) 2287 | -9/Materials | Discovered new exit (range 6) 2297 | -9/Materials | Entered Mines 2305 | -9/Mines | Met a Derelict bent on vengeance 2345 | -9/Mines | Discovered new exit (range 12) 2638 | -9/Mines | Found a hidden stash of uninstalled traps 2679 | -9/Mines | Deemed a non-threat by the Exiles lab entrance 2679 | -9/Mines | Discovered new exit (range 5) 2774 | -9/Mines | Received a Mining Laser from a helpful Derelict 3155 | -9/Mines | Learned location of Zion (-6) 3166 | -9/Mines | Met a Derelict who couldn't figure out how to use a Trap Extractor 3237 | -9/Mines | Discovered new exit (range 8) 3387 | -9/Mines | Entered Exiles 3387 | -9/Exiles | Accompanied by 1 ally 3417 | -9/Exiles | Led the pair of lost Derelicts to a safe place 3419 | -9/Exiles | Met 8R-AWN 3439 | -9/Exiles | Met EX-HEX 3472 | -9/Exiles | Met EX-BIN 3490 | -9/Exiles | Aligned with FarCom system 3491 | -9/Exiles | Given EX-Vault access code 3520 | -9/Exiles | Opened EX-Vault 3532 | -9/Exiles | Found Potential Leg 3533 | -9/Exiles | Found Potential Leg 3561 | -9/Exiles | Warned to stay clear of 0b10 Research branches 3571 | -9/Exiles | Exiles lab attacked by MAIN.C 3640 | -9/Exiles | Discovered new exit (range 10) 3651 | -9/Exiles | Left Exiles lab with Potential Leg 3651 | -9/Exiles | Entered Mines 3834 | -8/Mines | Discovered new exit (range 7) 3953 | -8/Mines | Build established: Skirmisher 3987 | -8/Mines | Entered Materials 3987 | -8/Materials | Evolved 2 slots: Utility x2 4279 | -8/Materials | Build established: Mutant 4422 | -8/Materials | Self-destructed Last Messages --------------- 04391_ Overheating: System interference. 04391_ Imp. Heat Sink temporarily disabled. 04391_ K-01 Serf collects debris. 04392_ K-01 Serf cleans the Neutrino Reactor. 04392_ K-01 Serf collects debris. 04401_ Med. Armor Plating destroyed. 04403_ K-01 Serf cleans the Neutrino Reactor. 04404_ G-47 Trooper destroyed. 04405_ K-01 Serf collects debris. 04414_ K-01 Serf cleans the Neutrino Reactor. 04415_ Critical hit (Burn: +37). 04416_ G-50 Soldier heat damages Carbon-fiber Leg. 04418_ Lgt. Treads destroyed. 04418_ K-01 Serf cleans the Neutrino Reactor. 04419_ Overheating: System interference. 04419_ Imp. Targeting Computer temporarily disabled. 04419_ U-05 Engineer builds a Wall. 04420_ Power failure, Imp. Deuterium Engine shutdown. 04421_ K-01 Serf cleans the Neutrino Reactor. 04422_ Lgt. Treads destroyed. Map ----- +----------------------------------------------------+ | ??????????????????????????????????????????# #????? | | ??????????????????????????????????????????# #????? | | ??????????????????????????????????????????# #????? | | ??????????????????????????????????????????# #????? | | ??????????????????????????????????????????# #????? | | ??????????????????????????????????????????# #????? | | ??????????????????????????????????????????# #????? | | ?????????????????????????#########????????# #????? | | ?????????????????????????# T #????????# #????? | | ?????????????????????????# #????????# #?#### | | ?????????????????????????# #????????# #?# | | ?????????????????????????# ##?????### ### | | ?????????????????????????# """ !## ##### [# | | ?????????????????????????# """ # %%#= | | ?????????????????????????# """ + T=%/[ | | ?????????????????????????# # [# | | ?????????????????????????####/########### # ] | | ???????????????????????????# % + ## ## | | ???????????????????????????# ### ## ## | | ???????????????????????????# #?# """ ]## ##### | | ??????????????????########## #?# """ ## #???? | | ??????????????????# T # #?# """ ## #???? | | ??????????????????# """ # #?# ## #???? | | ??????????????????# """ # #######+### ##### | | ?????????????????## """ # # | | ?????????????????# % kg@w/ # | | ?????????????????##! """%g#k # | | ??????????????????# """ # ################### | | ??????????????????#] """=%# #?????????????????? | | ??????????????????# =# #?????????????????? | | ??????????????????########## #?????????????????? | | ??????????????????????????? #?????????????????? | | ??????????????????????????? +?????????????????? | | ??????????????????????????? #?????????????????? | | ???????????????????????????# #?????????????????? | | ???????????????????????????? #?????????????????? | | ???????????????????????????? #?????????????????? | | ???????????????????????????? #?????????????????? | | ???????????????????????????? #?????????????????? | | ???????????????????????????? ??????????????????? | | ?????????????????????????????????????????????????? | | ?????????????????????????????????????????????????? | | ?????????????????????????????????????????????????? | | ?????????????????????????????????????????????????? | | ?????????????????????????????????????????????????? | | ?????????????????????????????????????????????????? | | ?????????????????????????????????????????????????? | | ?????????????????????????????????????????????????? | | ?????????????????????????????????????????????????? | | ?????????????????????????????????????????????????? | +----------------------------------------------------+ Best States ------------- Heat Dissipation 45 Energy Generation 16 Energy Capacity 290 Matter Stores 300 Matter Capacity 300 Sight Range 16 Robot Scan Range 14 Terrain Scan Density 10 ECM Strength 1 Armor Coverage 225 Utility Shielding 33 Evasion (%) 40 Targeting Accuracy 6 Recoil Reduction 2 Item Schematics ----------------- None Robot Schematics ------------------ None Fabricated ------------ Nothing Alien Tech Used ----------------- None Achievements -------------- None Challenges ------------ None Game ------ Seed GatlingRelayRouter Manual? 0 Play Time 00:42:20 Cumulative 63.2 hours Start 2023.06.04 @ 16:12:12 End 2023.06.04 @ 18:38:35 Sessions 1 Manual Loads 0 Difficulty Rogue Special Mode None Game No. 56 Rogue 56 Adventurer 0 Explorer 0 Win Type - Total 0 Types 0/0/0/0/0/0/0/0/0 Lore% 34 Gallery% 40 Achievement% 32 Wizard Run 0 Options --------- ASCII 0 Keyboard 0 Movement Numpad Keybinds 0 Fullscreen 1 Font 18/SmallcapsGlow Map View 76x50 Tactical HUD 1 Map Filters NONE Filters NONE Steam 1 RUN: c8609eb0-4c0e-41c3-bae4-19d8355bfa9f